Cogmind - Beta 16 @@@ ROGUE MODE // 2025.11.06 @ 21:41:10 Player: Visionary Result: Destroyed by 1O-573(R) with Subdweller Machine Gun Performance ------------- Evolutions (0) 0 Regions Visited (3) 600 Robots Destroyed (11) 55 Value Destroyed (276) 276 Prototype IDs (0) 0 Alien Tech Used (0) 0 Bonus (0) 0 TOTAL SCORE: 931 Bonus ------- None Cogmind --------- Core Integrity 0/250 Matter 291/300 Energy 250/250 System Corruption 0% Temperature Cool (0) Movement Walking (120) Location -10/Subcaves Parts ------- > --- POWER (1) -------- Ion Engine > --- PROPULSION (2) --- Aluminum Leg Aluminum Leg > --- UTILITY (2) ------ Medium Storage Unit Structural Scanner > --- WEAPON (2) ------- Small Laser Light Assault Rifle > --- INVENTORY (10) --- Ion Engine Aluminum Leg Compact Wheel Compact Wheel Compact Matter Pod (150) ECM Suite Datajack Peak State ------------ > --- POWER ------------ Ion Engine > --- PROPULSION ------- Aluminum Leg Aluminum Leg > --- UTILITY ---------- Medium Storage Unit Structural Scanner > --- WEAPON ----------- Light Assault Rifle Light Assault Rifle > --- INVENTORY -------- Ion Engine Aluminum Leg Aluminum Leg Aluminum Leg Compact Wheel Compact Wheel Large Matter Pod ECM Suite Small Laser Datajack [Rating: 8] Favorites ----------- Power Ion Engine Engine Ion Engine Propulsion Aluminum Leg Leg Aluminum Leg Utility Structural Scanner Device Structural Scanner Storage Medium Storage Unit Weapon Light Assault Rifle Energy Gun EM Pulse Gun Ballistic Gun Light Assault Rifle Build | -11 -10 -10 -10 ------- Run | Yrd Mat Min Sub Slots Evolved . | . . . . Power . | . . . . Propulsion . | . . . . Utility . | . . . . Weapon . | . . . . Parts Attached 13 | 6 4 1 2 Power 2 | 1 1 . . Engine 2 | 1 1 . . Core . | . . . . Reactor . | . . . . Propulsion 4 | 2 . 1 1 Treads . | . . . . Leg 4 | 2 . 1 1 Wheel . | . . . . Hover . | . . . . Flight . | . . . . Utility 3 | 1 2 . . Device 1 | . 1 . . Storage 2 | 1 1 . . Processor . | . . . . Hackware . | . . . . Protection . | . . . . Artifact . | . . . . Weapon 4 | 2 1 . 1 Energy Gun 2 | 1 . . 1 Energy Cannon . | . . . . Ballistic Gun 2 | 1 1 . . Ballistic Cannon . | . . . . Launcher . | . . . . Special Weapon . | . . . . Impact Weapon . | . . . . Slashing Weapon . | . . . . Piercing Weapon . | . . . . Special Melee Weapon . | . . . . Unidentified Prototypes . | . . . . Parts Lost 3 | . 1 . 2 Power 1 | . 1 . . Propulsion 1 | . . . 1 Utility . | . . . . Weapon 1 | . . . 1 Highest Loss Streak 2 | . 1 . 2 To Critical Strikes . | . . . . Average Backups 7 | 3 7 9 7 Power . | . . 1 1 Propulsion 3 | 1 3 4 3 Utility 1 | . . 1 2 Weapon . | . 1 1 . Tool/Special . | . . . . Unused Backups 9 | . 1 1 7 Power 1 | . . . 1 Propulsion 4 | . 1 . 3 Utility 3 | . . 1 2 Weapon . | . . . . Tool/Special 1 | . . . 1 Average Slot Usage (%) 99 | . 98 100 100 Engine 14 | . 14 14 14 Leg 28 | . 28 28 28 Device 13 | . 12 14 14 Storage 14 | . 14 14 14 Energy Gun 5 | . 5 . 7 Ballistic Gun 22 | . 22 28 20 Peak Build Rating 8 | 6 8 8 8 Average Rating 7 | 3 7 7 7 On Entrance 5 | . 6 8 8 Avg Prop Armor Cover (%) . | . . . . Naked Turns . | . . . . Heaviest Build 18 | 13 18 18 18 Greatest Support 20 | 20 20 20 20 Greatest Overweight (x) 4 | 4 . . . Average Overweight (x) . | . . . . Largest Inventory Capacity 10 | 8 10 10 10 Average Capacity 9 | 7 8 10 10 Most Carried 10 | 6 10 10 9 Average Carried 7 | 3 7 9 7 Final Capacity 10 | 8 10 10 10 Final Carried 10 | 4 10 9 7 Class Distribution -------------------- 100% | Mutant Dominant Class ---------------- Mutant | -10/Materials Mutant | -10/Mines Mutant | -10/Subcaves Resources | -11 -10 -10 -10 ----------- Run | Yrd Mat Min Sub Matter Collected 537 | 231 251 24 31 Remotely . | . . . . Salvage Created 362 | . 291 40 31 Parts 23 | . 17 4 2 Haulers Intercepted 1 | . 1 . . Recyclers Shooed . | . . . . Parts Field Recycled . | . . . . Retrieved Matter . | . . . . Parts Self-Destructed 4 | . . . 4 Prevented . | . . . . Parts Restored . | . . . . Kills | -11 -10 -10 -10 ------- Run | Yrd Mat Min Sub Combat Hostiles Destroyed 10 | . 6 3 1 Guns 10 | . 6 3 1 Classes Destroyed 4 | . 2 1 1 Hauler 1 | . 1 . . Swarmer 3 | . . 3 . Grunt 6 | . 6 . . Subdweller 1 | . . . 1 Best Kill Streak 4 | . 4 3 1 Combat Bots Only 3 | . 3 3 1 Max Kills in Single Turn 1 | . 1 1 1 Gunslinging . | . . . . Exploded . | . . . . Melee . | . . . . Uniques/NPCs Destroyed . | . . . . Combat | -11 -10 -10 -10 -------- Run | Yrd Mat Min Sub Hostile Shots Fired 74 | . 27 19 28 Missed 14 | . 5 4 5 Hits 60 | . 22 15 23 Projectile 60 | . 22 15 23 Damage Taken 859 | . 267 121 471 Core 250 | . 68 27 155 Absorbed by Shields . | . . . . Core Remaining (%) 100 | 100 . . . Volleys Fired 53 | . 29 7 17 Largest 2 | . 2 2 2 Hottest 60 | . 60 40 60 Shots Fired 106 | . 58 14 34 Gun 106 | . 58 14 34 Cannon . | . . . . Launcher . | . . . . Special . | . . . . Kinetic 81 | . 37 14 30 Thermal 4 | . . . 4 Explosive . | . . . . Electromagnetic 21 | . 21 . . Robot Hit Streak 12 | . 8 10 12 Robot Miss Streak 5 | . 5 3 1 Penetration Max . | . . . . Secondary Targets 1 | . . 1 . Max Gunslinging Chain 1 | . . 1 . Shots Hit Robots 74 | . 36 10 28 Core Hits 26 | . 17 4 5 Critical Kills . | . . . . Critical Parts Destroyed . | . . . . Critical Strikes . | . . . . Melee Attacks . | . . . . Impact . | . . . . Slashing . | . . . . Piercing . | . . . . Sneak Attacks . | . . . . Combat Hostiles . | . . . . Follow-up Attacks . | . . . . Damage Inflicted 706 | . 402 74 230 Guns 676 | . 372 74 230 Cannons . | . . . . Explosions 30 | . 30 . . Melee . | . . . . Ramming . | . . . . Kinetic 478 | . 208 74 196 Thermal 64 | . 30 . 34 Explosive . | . . . . Electromagnetic 164 | . 164 . . Impact . | . . . . Slashing . | . . . . Piercing . | . . . . Highest Corruption . | . . . . Average Corruption . | . . . . Corruption Purged . | . . . . Corruption Blocked . | . . . . Overload Shots . | . . . . Overflow Damage . | . . . . Projectiles . | . . . . Explosions . | . . . . Melee . | . . . . Knockbacks . | . . . . Impact . | . . . . Kinetic . | . . . . Secondary . | . . . . Self-Inflicted Damage 23 | . 23 . . Shots 1 | . 1 . . Rammed . | . . . . Targets Rammed . | . . . . Kicked . | . . . . Crushed . | . . . . Highest Temperature 120 | . 120 . . Average Temperature 39 | . 39 . . Received Heat Transfer 132 | . 132 . . Siege Activations . | . . . . Martial Activations . | . . . . Shielding Activations . | . . . . Robots Disrupted . | . . . . Combat Hostiles . | . . . . Robots Corrupted . | . . . . Combat Hostiles . | . . . . Parts Fried 1 | . 1 . . Impact Corruptions . | . . . . Robots Melted . | . . . . Combat Hostiles . | . . . . Parts Melted . | . . . . Heat Transferred 125 | . 50 . 75 Parts Sabotaged . | . . . . Parts Stolen . | . . . . Parts Stripped . | . . . . Power Chain Reactions 1 | . 1 . . Alert | -11 -10 -10 -10 ------- Run | Yrd Mat Min Sub Maximum Alert Level . | . . . . Low Security (%) 100 | 100 100 100 . Level 1 . | . . . . Level 2 . | . . . . Level 3 . | . . . . Level 4 . | . . . . Level 5 . | . . . . High Security . | . . . . Max Security . | . . . . Peak Influence 82 | . 82 70 . Initial . | . . . . Average 28 | . 30 35 . Influence Increases 262 | . 192 70 . Destroy 0b10 Robot/C 180 | . 120 60 . Destroy 0b10 Robot/NC 5 | . 5 . . Destroy Leader 32 | . 22 10 . Lose Combat Pursuer 45 | . 45 . . Influence Decreases 262 | . 192 50 20 Entered New Map 11 | . . . 11 Time Decay 241 | . 182 50 9 Lost Part 10 | . 10 . . Squads Dispatched 2 | . 2 . . Investigation . | . . . . Extermination . | . . . . Reinforcement 2 | . 2 . . Assault . | . . . . Garrison . | . . . . Intercept . | . . . . Searches Triggered . | . . . . Construction Impeded . | . . . . Haulers Reinforced . | . . . . Active Scanning Responses . | . . . . Cargo Convoy Interrupts . | . . . . Stealth | -11 -10 -10 -10 --------- Run | Yrd Mat Min Sub Distress Signals 1 | . 1 . . Communications Jammed . | . . . . Distress Signals . | . . . . Times Spotted 21 | . 16 3 2 Peak Tracking Total 6 | . 6 3 1 Tactical Retreats 3 | . 3 . . Traps | -11 -10 -10 -10 ------- Run | Yrd Mat Min Sub Traps Triggered . | . . . . Indirectly . | . . . . Trap Hack Attempts . | . . . . Triggered . | . . . . Disarmed . | . . . . Reprogrammed . | . . . . Reused . | . . . . Traps Extracted . | . . . . Installed . | . . . . Triggered . | . . . . Machines | -11 -10 -10 -10 ---------- Run | Yrd Mat Min Sub Machines Disabled . | . . . . Max in Single Turn . | . . . . Machines Repaired . | . . . . Machines Dismantled . | . . . . Machines Sabotaged . | . . . . Overloaded Fab Kills . | . . . . Hacking | -11 -10 -10 -10 --------- Run | Yrd Mat Min Sub Machines Accessed 3 | . 3 . . Terminals 1 | . 1 . . Fabricators . | . . . . Repair Stations . | . . . . Recycling Units 2 | . 2 . . Scanalyzers . | . . . . Garrison Access . | . . . . Total Hacks 7 | . 7 . . Successful 4 | . 4 . . Failed 3 | . 3 . . Catastrophic . | . . . . Database Lockouts . | . . . . Manual . | . . . . Terminals 3 | . 3 . . Fabricators . | . . . . Repair Stations . | . . . . Recycling Units 4 | . 4 . . Scanalyzers . | . . . . Garrison Access . | . . . . Terminal Hacks 1 | . 1 . . Zone Layout 1 | . 1 . . Fabricator Hacks . | . . . . Repair Station Hacks . | . . . . Recycling Unit Hacks 3 | . 3 . . Retrieve Components 3 | . 3 . . Scanalyzer . | . . . . Garrison Access Hacks . | . . . . Unauthorized Hacks . | . . . . Terminals . | . . . . Fabricators . | . . . . Repair Stations . | . . . . Recycling Units . | . . . . Scanalyzers . | . . . . Garrison Access . | . . . . Data Cores Recovered . | . . . . Used . | . . . . Hacking Detections 2 | . 2 . . Full Trace Events . | . . . . Feedback Events . | . . . . Feedback Blocked . | . . . . Robot Schematics Acquired . | . . . . Robots Built . | . . . . Authchips . | . . . . Time . | . . . . Total Robot Build Rating . | . . . . Part Schematics Acquired . | . . . . Parts Built . | . . . . Authchips . | . . . . Time . | . . . . Total Part Build Rating . | . . . . Part Studies Acquired . | . . . . Parts Repaired . | . . . . Time . | . . . . Parts Recycled . | . . . . Recycled Matter . | . . . . Retrieved Matter . | . . . . Retrieved Components 2 | . 2 . . Parts Scanalyzed . | . . . . Part Schematics Acquired . | . . . . Parts Damaged . | . . . . Bothacking | -11 -10 -10 -10 ------------ Run | Yrd Mat Min Sub Used RIF Installer . | . . . . Robots Hacked . | . . . . Non-combat . | . . . . Combat . | . . . . Robot Hacks Applied . | . . . . Relay Couplers Released . | . . . . Fabnet Peak Effective % . | . . . . Robots Rewired . | . . . . Allies Hacked . | . . . . Hacks Repelled . | . . . . Allies | -11 -10 -10 -10 -------- Run | Yrd Mat Min Sub Total Allies . | . . . . Largest Group . | . . . . Highest-Rated Group . | . . . . Highest-Rated Ally . | . . . . Total Orders . | . . . . Ally Attacks . | . . . . Total Damage . | . . . . Kills . | . . . . Allies Corrupted . | . . . . Allies Melted . | . . . . Intel | -11 -10 -10 -10 ------- Run | Yrd Mat Min Sub Active Infowar (turns) 824 | . 485 127 212 Structural 824 | . 485 127 212 Robot Analysis Total . | . . . . Derelict Logs Recovered 2 | . . . 2 Drone Launches . | . . . . Drone Recoveries . | . . . . Exploration | -11 -10 -10 -10 ------------- Run | Yrd Mat Min Sub Turns Passed 916 | 63 514 127 212 Spaces Moved 550 | 40 287 87 136 Core 23 | 23 . . . Treads . | . . . . Legs 527 | 17 287 87 136 Wheels . | . . . . Hover . | . . . . Flight . | . . . . Fastest Speed 50 | 50 120 120 120 Average Speed 119 | 119 120 120 120 Slowest Speed 250 | 250 120 120 120 Overloaded Moves . | . . . . Propulsion Burnouts . | . . . . Robots Hopped . | . . . . Potential Cave-ins . | . . . . Cave-ins Triggered . | . . . . Exploration Rate (%) 25 | 4 62 20 15 Regions Visited 3 Branch Regions 2 Pre-discovered Areas . | . . . . Known Exits Taken . | . . . . Unknown Exits Taken 3 | 1 1 1 . Scrap Searched . | . . . . Spaces Dug . | . . . . Terrain Destroyed . | . . . . Melee . | . . . . Projectile . | . . . . AOE . | . . . . Terrain Rammed . | . . . . Walls Destroyed . | . . . . Machines Disabled . | . . . . Actions | -11 -10 -10 -10 --------- Run | Yrd Mat Min Sub Total 718 | 55 407 99 157 Wait 76 | . 72 2 2 Move 547 | 39 286 86 136 Hop . | . . . . Pick Up 23 | 10 12 1 . Fast Attach . | . . . . Attach 10 | 6 2 . 2 Detach . | . . . . Swap 3 | . 2 1 . Drop 6 | . 4 2 . Fire 53 | . 29 7 17 Melee . | . . . . Ram . | . . . . Kick . | . . . . Crush . | . . . . Escape Stasis . | . . . . Rewire . | . . . . Trap . | . . . . Miscellaneous . | . . . . Route ------- -11/Scrapyard -10/Materials (discovered 2 exits: [*Mat] / [*Min]) -10/Mines -10/Subcaves History --------- Turn | Location | Event 7 | -11/Scrapyard | Discovered new exit (range 15) 64 | -11/Scrapyard | Entered Materials 320 | -10/Materials | Build established: Mutant 451 | -10/Materials | Discovered new exit (range 7) 551 | -10/Materials | Discovered new exit (range 16) 578 | -10/Materials | Entered Mines 643 | -10/Mines | Discovered new exit (range 6) 705 | -10/Mines | Entered Subcaves 719 | -10/Subcaves | Learned Materials terminal intel 763 | -10/Subcaves | Core integrity fell below 50% 775 | -10/Subcaves | Core integrity fell below 20% 888 | -10/Subcaves | Learned Materials emergency access door positions 917 | -10/Subcaves | Destroyed by 1O-573(R) with Subdweller Machine Gun Last Messages --------------- Acquired 24 matter. T-07 Excavator is excavating. EXIT=FOUND T-07 Excavator is excavating. Dropped Lrg. Matter Pod. Acquired Com. Matter Pod. T-07 Excavator is excavating. LOCATION=UNKNOWN AMBIENT_HEAT=-10 GOAL=ESCAPE Acquired derelict log, extracted data. Data stored: Materials terminal intel. 8U-OZV(O) collects matter. 8U-OZV(O) puts together Sub. Power Source. Aluminum Leg destroyed. Lgt. Assault Rifle destroyed. B5-LJ8(R) destroyed. Acquired 31 matter. Acquired derelict log, extracted data. Data stored: Materials emergency access points. Map ----- +----------------------------------------------------+ | # ### # ####???????????????????? | | # ### #####???????????????????? | | # #### ###?????????????????????? | | ### ######## # # ###?????????????????????? | | #### ######## ### ###?????????????????????? | | ?### ###### ##?????????????????????? | | ??## #### ##?????????????????????? | | ?### ### # ##?????????????????????? | | ?### ### #####?????????????????????? | | ### ## ########?????????????????? | | ## ### ## ##########??????????????? | | #### ### # ## #####?????????????? | | ##### ### ## ###?????????????? | | # ########## # ## ##?????????????? | | #####?##### # ##?????????????? | | ###??????### ###?????????????? | | " ????????#### # ##??????????????? | | ??????###### ## ##??????????????? | | ## ??? ###### #### ###??????????????? | | ## #### #### ####??????????????? | | # #### ###???????????????? | | ? ## ##????????????????? | | ? #### #####??????????????? | | ? ## ##### #######?????????????? | | ?? ## ###?### ## ### ###?????????????? | | ??###????### ### R@ ##?????????????? | | ?????????## ### ##?????????????? | | ?????????## ### ### ###?????????????? | | ?????????## ### ######?????????????? | | ?????????## ###########??????????????? | | ????????## ########?????????????????? | | ????????## #######?????????????????????????? | | ????????###########?????????????????????????? | | ????????#####???????????????????????????????? | | ????????????????????????????????????????????? | | ????????????????????????????????????????????? | | ????????????????????????????????????????????? | | ????????????????????????????????????????????? | | ????????????????????????????????????????????? | | ????????????????????????????????????????????? | | ????????????????????????????????????????????? | | ????????????????????????????????????????????? | | ????????????????????????????????????????????? | | ????????????????????????????????????????????? | | ????????????????????????????????????????????? | | ????????????????????????????????????????????? | | ????????????????????????????????????????????? | | ????????????????????????????????????????????? | | | | | +----------------------------------------------------+ Best States ------------- Heat Dissipation 25 Energy Generation 10 Energy Capacity 250 Matter Stores 300 Matter Capacity 300 Sight Range 16 Terrain Scan Density 10 Evasion (%) 55 Item Schematics ----------------- None Robot Schematics ------------------ None Fabricated ------------ Nothing Repaired ---------- Nothing Studied --------- None Alien Tech Used ----------------- None Achievements -------------- None Challenges ------------ None Game ------ Seed PrecisionRainbowProtection Manual? 0 Play Time 00:10:51 Cumulative 16.2 hours Start 2025.11.06 @ 21:31:35 End 2025.11.06 @ 21:41:10 Sessions 1 Manual Loads 0 Difficulty Rogue Special Mode None Game No. 23 Rogue 23 Adventurer 0 Explorer 0 Win Type - Total 0 Types 0/0/0/0/0/0/0/0/0/0 Lore% 16 Gallery% 17 Achievement% 15 Wizard Run 0 Options --------- Layout 0 ASCII 0 Keyboard 0 Movement Mouse Keybinds 0 Fullscreen 1 Font 18/SmallcapsGlow Map View 76x50 Zoom Use 0% Tactical HUD 0 Map Filters NONE Filters NONE Steam 1 RUN: 62c647cb-1737-4096-922f-4859b326dddd